Workbook

Sheet Документ
A2: Сведения об исполнении бюджета Окуловского муниципальногопо расходам по разделам и подразделам
A3: за I квартал 2017 года
A5: (тыс. рублей)
A6: Наименование | B6: раз-дела | C6: подраз-дела | D6: Исполнено за I квартал 2016 года | E6: Уточненная роспись на 2016 год | F6: Кассовый план на I квартал 2017 года | G6: Исполнено за I квартал 2017 года | H6: Динамика к аналогичному периоду 2016 года в % | I6: Процент исполнения к кассовому плану I квартал
A8: 1 | B8: 2 | C8: 3 | D8: 4 | E8: 5 | F8: 6 | G8: 7 | H8: 8 | I8: 9
A9: Общегосударственные вопросы | B9: 01 | C9: 00 | D9: =SUM(D10:D15) -> 9825.7 | E9: 47391.5 | F9: 10559.2 | G9: 10130.1 | H9: =G9/D9*100 -> 103.0979981 | I9: =G9/F9*100 -> 95.93624517 | R9: 1000
A10: Функционирование высшего должностного лица субъекта Российской Федерации и муниципального образования | B10: 01 | C10: 02 | D10: 397.4 | E10: 1658.3 | F10: 327 | G10: 326.7 | H10: =G10/D10*100 -> 82.20936085 | I10: =G10/F10*100 -> 99.90825688
A11: Функционирование Правительства Российской Федерации, высших исполнительных органов государственной власти субъектов Российской Федерации, местных администраций | B11: 01 | C11: 04 | D11: 5693.3 | E11: 28472.9 | F11: 6316.8 | G11: 6070.3 | H11: 106.6218186 | I11: 96.0977077
A12: Судебная система | B12: 01 | C12: 05 | D12: 0
A13: Обеспечение деятельности финансовых, налоговых и таможенных органов и органов финансового (финансово-бюджетного) надзора | B13: 01 | C13: 06 | D13: 1502.9 | E13: 7107.3 | F13: 1366.3 | G13: 1339.2 | H13: 89.10772506 | I13: 98.01654102
A14: Резервные фонды | B14: 01 | C14: 11 | D14: 0 | E14: 100 | F14: 0 | G14: 0
A15: Другие общегосударственные вопросы | B15: 01 | C15: 13 | D15: 2232.1 | E15: 10053 | F15: 2549.1 | G15: 2393.9 | H15: 107.2487792 | I15: 93.91157663
A16: Национальная оборона | B16: 02 | C16: 00 | D16: =D17 -> 187.6 | E16: 733.7 | F16: 183.1 | G16: 183.1 | H16: 97.60127932 | I16: 100
A17: Мобилизационная и вневойсковая подготовка | B17: 02 | C17: 03 | D17: 187.6 | E17: 733.7 | F17: 183.1 | G17: 183.1 | H17: 97.60127932 | I17: 100
A18: Национальная безопасность и правоохранительная деятельность | B18: 03 | C18: 00 | D18: =SUM(D19:D19) -> 0 | E18: 150 | F18: 0 | G18: 0
A19: Другие вопросы в области национальной безопасности и правоохранительной деятельности | B19: 03 | C19: 14 | D19: 0 | E19: 150 | F19: 0 | G19: 0
A20: Национальная экономика | B20: 04 | C20: 00 | D20: =SUM(D21:D24) -> 327.4 | E20: 13642.7 | F20: 656.1 | G20: 479.7 | H20: 146.5180208 | I20: 73.1138546
A21: Сельское хозяйство и рыболовство | B21: 04 | C21: 05 | D21: 0 | E21: 250 | F21: 0 | G21: 0
A22: Водное хозяйство | B22: 04 | C22: 06 | D22: 0 | E22: 300 | F22: 0 | G22: 0
A23: Дорожное хозяйство (дорожные фонды) | B23: 04 | C23: 09 | D23: 327.4 | E23: 12552.7 | F23: 656.1 | G23: 474.7 | H23: 144.9908369 | I23: 72.35177564
A24: Другие вопросы в области национальной экономики | B24: 04 | C24: 12 | D24: 0 | E24: 540 | F24: 5 | G24: 5 | I24: 100
A25: Жилищно-коммунальное хозяйство | B25: 05 | C25: 00 | D25: =SUM(D26:D26) -> 0 | E25: 655.4 | F25: 141.9 | G25: 141.9 | I25: 100
A26: Жилищное хозяйство | B26: 05 | C26: 01 | D26: 0 | E26: 343.9 | F26: 93 | G26: 93 | I26: 100
B27: 05 | C27: 02 | E27: 311.5 | F27: 48.9 | G27: 48.9 | I27: 100
A28: Образование | B28: 07 | C28: 00 | D28: =SUM(D29:D33) -> 66809 | E28: 261441 | F28: 71679.4 | G28: 70019.5 | H28: 104.8054903 | I28: 97.68427191
A29: Дошкольное образование | B29: 07 | C29: 01 | D29: 25950 | E29: 100147.2 | F29: 26625.1 | G29: 26368.7 | I29: 99.03699892
A30: Общее образование | B30: 07 | C30: 02 | D30: 38198.8 | E30: 125070.7 | F30: 36627.5 | G30: 35581.7 | H30: 93.14873766 | I30: 97.14476828
B31: 07 | C31: 03 | E31: 19551.6 | F31: 5207 | G31: 4996.5 | I31: 95.95736509
A32: Молодежная политика и оздоровление детей | B32: 07 | C32: 07 | D32: 591 | E32: 4933.1 | F32: 576.4 | G32: 546.4 | H32: 92.4534687 | I32: 94.79528105
A33: Другие вопросы в области образования | B33: 07 | C33: 09 | D33: 2069.2 | E33: 11738.4 | F33: 2643.4 | G33: 2526.2 | H33: 122.0858303 | I33: 95.56631611
A34: Культура, кинематография | B34: 08 | C34: 00 | D34: =SUM(D35:D36) -> 8984.6 | E34: 44392.8 | F34: 11864.8 | G34: 10699.1 | H34: 119.0826525 | I34: 90.17513991
A35: Культура | B35: 08 | C35: 01 | D35: 7548.1 | E35: 36007.8 | F35: 10053.2 | G35: 9152.8 | H35: 121.2596547 | I35: 91.04364779
A36: Другие вопросы в области культуры, кинематографии | B36: 08 | C36: 04 | D36: 1436.5 | E36: 8385 | F36: 1811.6 | G36: 1546.3 | H36: 107.6435781 | I36: 85.35548686
A37: Социальная политика | B37: 10 | C37: 00 | D37: =SUM(D38:D41) -> 32174.2 | E37: 154028 | F37: 36872 | G37: 29808.4 | H37: 92.64690342 | I37: 80.84291603
A38: Пенсионное обеспечение | B38: 10 | C38: 01 | D38: 0 | E38: 1677.6 | F38: 550 | G38: 549.4 | I38: 99.89090909
A39: Социальное обеспечение населения | B39: 10 | C39: 03 | D39: 25498.9 | E39: 101397.6 | F39: 26381 | G39: 19991.2 | H39: 78.40024472 | I39: 75.77878018
A40: Охрана семьи и детства | B40: 10 | C40: 04 | D40: 5921.8 | E40: 46943.3 | F40: 8671 | G40: 8173.1 | H40: 138.0171569 | I40: 94.25787106
A41: Другие вопросы в области социальной политики | B41: 10 | C41: 06 | D41: 753.5 | E41: 4009.5 | F41: 1270 | G41: 1094.7 | H41: 145.2820173 | I41: 86.19685039
A42: Физическая культура и спорт | B42: 11 | C42: 00 | D42: =SUM(D43:D43) -> 165.1 | E42: 9877.6 | F42: 1947.6 | G42: 1767.3 | H42: 1070.442156 | I42: 90.74245225
A43: Физическая культура | B43: 11 | C43: 01 | D43: 165.1 | E43: 9877.6 | F43: 1947.6 | G43: 1767.3 | H43: 1070.442156 | I43: 90.74245225
A44: Обслуживание государственного и муниципального долга | B44: 13 | C44: 00 | D44: =D45 -> 0 | E44: 397.1 | F44: 20.2 | G44: 20.2 | H44: =G44/D44*100 ->  | I44: =G44/F44*100 -> 100
A45: Обслуживание государственного внутреннего и муниципального долга | B45: 13 | C45: 01 | D45: 0 | E45: 397.1 | F45: 20.2 | G45: 20.2 | H45: =G45/D45*100 ->  | I45: =G45/F45*100 -> 100
A46: Межбюджетные трансферты общего характера бюджетам субъектов Российской Федерации и муниципальных образований | B46: 14 | C46: 00 | D46: =SUM(D47:D47) -> 2909 | E46: 29067.1 | F46: 6481.4 | G46: 6481.4 | H46: =G46/D46*100 -> 222.8050877 | I46: =G46/F46*100 -> 100
A47: Дотации на выравнивание бюджетной обеспеченности субъектов Российской Федерации и муниципальных образований | B47: 14 | C47: 01 | D47: 2909 | E47: 29067.1 | F47: 6481.4 | G47: 6481.4 | H47: =G47/D47*100 -> 222.8050877 | I47: =G47/F47*100 -> 100
A48: Итого | D48: =D9+D16+D18+D20+D25+D28+D34+D37+D42+D44+D46 -> 121382.6 | E48: =E9+E16+E18+E20+E25+E28+E34+E37+E42+E44+E46 -> 561776.9 | F48: =F9+F16+F18+F20+F25+F28+F34+F37+F42+F44+F46 -> 140405.7 | G48: 129730.7 | H48: =G48/D48*100 -> 106.8775096 | I48: =G48/F48*100 -> 92.39703231
